bitfinex-derivatives/quotes_SOLF0:USTF0_20250310
["timestamp","ask_amount","ask_price","bid_price","bid_amount"]
[1741642641154,8.44715063,119.32,119.29,8.3874]
[1741642641460,0.06115063,119.32,119.27,315.2]
[1741642641859,0.06115063,119.32,119.28,8.3881]
[1741642641860,8.3869,119.31,119.28,8.3881]
[1741642642061,0.06115063,119.32,119.27,315.2]
[1741642642457,8.3864,119.31,119.28,8.3881]
[1741642643162,8.44715063,119.32,119.29,8.3874]
[1741642643462,0.06115063,119.32,119.27,276.26]
[1741642643661,8.3864,119.31,119.28,8.3879]
[1741642645163,0.06115063,119.32,119.27,276.26]
[1741642645463,8.44695063,119.32,119.29,8.3874]
[1741642647062,0.06115063,119.32,119.27,315.2]
[1741642647364,8.44715063,119.32,119.29,8.3874]
[1741642647565,0.06115063,119.32,119.27,315.2]
[1741642647861,8.44735063,119.32,119.29,8.3874]
[1741642648061,0.06115063,119.32,119.29,8.3874]
[1741642649366,8.3863,119.31,119.29,8.3874]
[1741642649767,8.3863,119.31,119.27,315.2]
[1741642649964,8.3867,119.31,119.27,315.2]
[1741642650160,0.06115063,119.32,119.27,315.2]
[1741642650507,0.06115063,119.32,119.27,276.26]
[1741642650864,0.06115063,119.32,119.27,8.3887]
[1741642651065,8.3875,119.3,119.27,8.3887]
[1741642652666,8.3875,119.3,119.28,8.3884]
[1741642653067,8.44043503,119.3,119.28,8.3884]
[1741642653767,0.05293503,119.3,119.28,8.3884]
[1741642654569,8.44003503,119.3,119.28,8.3884]
[1741642654963,8.44003503,119.3,119.27,8.3887]
[1741642655783,8.44003503,119.3,119.28,8.3883]
[1741642658370,0.05293503,119.3,119.25,38.96]
[1741642658570,0.05293503,119.3,119.28,8.3879]
[1741642658982,8.44023503,119.3,119.28,8.3879]
[1741642659165,8.44023503,119.3,119.27,8.3889]
[1741642659475,8.3878,119.29,119.27,8.3889]
[1741642659969,0.05293503,119.3,119.27,8.3889]
[1741642660176,8.44033503,119.3,119.27,8.3889]
[1741642660579,8.44033503,119.3,119.28,8.3882]
[1741642661376,8.3877,119.29,119.27,8.3888]
[1741642662478,8.44043503,119.3,119.28,8.3884]
[1741642664482,0.05293503,119.3,119.28,8.3884]
[1741642665083,0.05293503,119.3,119.29,8.3877]
[1741642668720,3.503e-05,119.3,119.29,47.3477]
[1741642668879,8.3832,119.36,119.33,8.3847]
[1741642669683,8.3817,119.38,119.35,8.3832]
[1741642669879,0.06073724,119.36,119.35,8.3832]
[1741642670884,4.1376,119.43,119.33,39.02358052]
[1741642671080,4.1376,119.43,119.33,38.96]
[1741642671284,2.1021,119.43,119.33,38.96]
[1741642671490,2.1021,119.43,119.41,8.3788]
[1741642671783,11.62841468,119.46,119.42,38.94]
[1741642671975,0.06007383,119.45,119.43,0.06252464]
[1741642672180,11.62841468,119.46,119.43,0.06252464]
[1741642672587,4.1295,119.5,119.43,0.06252464]
[1741642672888,46.51365872,119.51,119.43,276.66252464]
[1741642673275,85.45365872,119.51,119.37,2.1225]
[1741642673585,85.45365872,119.51,119.38,315.42]
[1741642674023,85.45365872,119.51,119.39,0.7952]
[1741642674380,8.3739,119.49,119.39,0.7952]
[1741642674579,0.06148156,119.45,119.43,0.05519027]
[1741642674780,85.45365872,119.51,119.4,8.3796]
[1741642675082,0.0534487,119.45,119.43,0.05853709]
[1741642675275,85.45365872,119.51,119.39,0.7952]
[1741642675485,0.06211501,119.45,119.43,0.05929238]
[1741642675679,8.3743,119.49,119.41,8.3793]
[1741642675887,0.05462627,119.45,119.43,0.06023445]
[1741642679989,0.05462627,119.45,119.43,8.43803445]
[1741642680188,0.05462627,119.45,119.43,0.06023445]
[1741642682793,8.3772,119.44,119.43,0.06023445]
[1741642684894,0.05462627,119.45,119.43,0.06023445]
[1741642685087,8.43142627,119.45,119.43,0.06023445]
[1741642685691,0.05462627,119.45,119.43,0.06023445]
[1741642687188,0.05462627,119.45,119.43,8.43763445]
[1741642687387,194.0,119.53,119.43,38.94023445]
[1741642687592,38.88,119.52,119.43,38.88]
[1741642687790,8.375,119.48,119.44,8.3769]
[1741642688094,38.88,119.52,119.44,8.3769]
[1741642688294,8.3752,119.47,119.44,8.3769]
[1741642688693,0.05347346,119.47,119.44,0.05781114]
[1741642689292,8.3759,119.46,119.44,0.05781114]
[1741642689494,0.05347346,119.47,119.44,8.43491114]
[1741642689794,0.05347346,119.47,119.44,0.05781114]
[1741642690190,8.3765,119.45,119.44,0.05781114]
[1741642690895,8.3803,119.4,119.38,276.48]
[1741642691397,38.88,119.44,119.38,276.48]
[1741642691597,8.3807,119.39,119.38,276.48]
[1741642691798,38.88,119.44,119.35,41.1005]
[1741642692199,0.05490532,119.41,119.38,0.05580053]
[1741642692494,8.3807,119.39,119.38,0.05580053]
[1741642695799,0.05490532,119.41,119.38,0.05580053]
[1741642696496,8.43460532,119.41,119.38,0.05580053]
[1741642697800,8.3803,119.4,119.38,0.05580053]
[1741642698001,0.05490532,119.41,119.38,0.05580053]
[1741642698497,8.3804,119.4,119.38,0.05580053]
[1741642698800,0.05490532,119.41,119.38,0.05580053]
[1741642698990,8.3805,119.4,119.38,0.05580053]
[1741642699399,0.05490532,119.41,119.38,0.05580053]
[1741642699598,8.43460532,119.41,119.38,8.43720053]
[1741642701000,8.43460532,119.41,119.38,0.05580053]
[1741642701203,0.05490532,119.41,119.39,8.3803]
[1741642701403,194.0,119.54,119.4,315.26]
[1741642701598,2.1601,119.53,119.41,0.7871]
[1741642702404,2.1601,119.53,119.48,8.3739]
[1741642702702,2.1601,119.53,119.48,47.2539]
[1741642702703,0.05595161,119.52,119.48,47.2539]
[1741642702903,0.05595161,119.52,119.49,0.05687677]
[1741642703207,0.05595161,119.52,119.49,8.43057677]
[1741642703608,0.05595161,119.52,119.49,0.05687677]
[1741642704108,0.05595161,119.52,119.5,8.3729]
[1741642705309,0.05595161,119.52,119.49,0.05687677]
[1741642708712,0.05595161,119.52,119.5,8.3726]
[1741642708913,0.05595161,119.52,119.49,0.05687677]
[1741642709414,0.05595161,119.52,119.5,8.373]
[1741642712915,8.42795161,119.52,119.49,47.27027677]
[1741642713316,8.42795161,119.52,119.49,38.89687677]
[1741642714520,0.05595161,119.52,119.5,8.3729]
[1741642716220,8.42765161,119.52,119.5,8.3729]
[1741642716915,0.05595161,119.52,119.5,8.3729]
[1741642717218,0.05595161,119.52,119.51,8.3723]
[1741642719421,1.45597557,119.61,119.49,38.89687677]
[1741642719619,6.4635,119.62,119.49,40.9807]
[1741642720220,194.0,119.61,119.49,38.8]
[1741642720524,8.3689,119.56,119.49,38.8]
[1741642720718,8.43165931,119.56,119.54,0.06174468]
[1741642720921,8.43165931,119.56,119.51,8.3719]
[1741642721121,8.43165931,119.56,119.54,0.05943112]
[1741642721522,8.3695,119.55,119.54,0.05943112]
[1741642722026,8.3707,119.54,119.49,47.1737]
[1741642722219,0.06275931,119.56,119.49,38.8]
[1741642722525,8.3713,119.53,119.49,38.8]
[1741642723012,0.05672385,119.52,119.5,0.05877367]
[1741642723620,0.05672385,119.52,119.43,8.3776]
[1741642723921,38.8,119.54,119.42,142.64200995]
[1741642724224,8.3766,119.45,119.41,314.92]
[1741642724626,8.3783,119.43,119.41,276.12]
[1741642724823,0.05745758,119.44,119.42,0.06408129]
[1741642725033,0.05745758,119.44,119.39,91.4197591]
[1741642725222,38.8,119.46,119.39,91.4197591]
[1741642726524,0.05358133,119.44,119.41,0.05703709]
[1741642726741,0.05358133,119.44,119.38,38.8]
[1741642729426,8.3789,119.42,119.37,8.3821]
[1741642729627,0.05358133,119.44,119.36,38.8]
[1741642729822,2.0398,119.45,119.36,38.8]
[1741642730026,0.05341579,119.41,119.36,38.8]
[1741642731229,0.05341579,119.41,119.37,8.3818]
[1741642732529,194.0,119.53,119.36,38.8]
[1741642732727,4.2077,119.53,119.37,1.508935]
[1741642733327,196.1658,119.57,119.38,26.85532249]
[1741642733525,6.3735,119.57,119.39,3.18411717]
[1741642733729,14.7417,119.57,119.5,8.3726]
[1741642734032,0.05537452,119.55,119.49,38.8]
[1741642734233,6.3735,119.57,119.52,0.05341579]
[1741642734456,0.05609249,119.53,119.52,0.05341579]
[1741642734633,6.3735,119.57,119.54,8.37]
[1741642734836,2.1559,119.57,119.54,8.37]
[1741642735032,46.51365872,119.59,119.54,8.37]
[1741642735336,0.05900112,119.57,119.55,8.369]
[1741642735532,0.05900112,119.57,119.55,8.42241579]
[1741642736535,0.05900112,119.57,119.55,0.05341579]
[1741642738636,0.05900112,119.57,119.55,8.42291579]
[1741642740137,0.05900112,119.57,119.55,0.05341579]
[1741642741632,0.05900112,119.57,119.49,38.76]
[1741642742043,38.76,119.58,119.49,38.76]
[1741642742738,8.3707,119.54,119.49,38.76]
[1741642743538,8.3707,119.54,119.49,47.1337]
[1741642743737,8.371,119.53,119.49,38.76]
[1741642744132,0.05607978,119.52,119.49,38.76]
[1741642744937,8.3724,119.51,119.49,38.76]
[1741642745138,8.3724,119.51,119.44,25.62870199]
[1741642745340,8.3724,119.51,119.45,38.76]
[1741642745539,8.3724,119.51,119.46,284.6754]
[1741642745732,0.05607978,119.52,119.46,276.3]
[1741642745931,0.05607978,119.52,119.44,20.50460199]
[1741642746136,4.2092,119.53,119.43,38.76]
[1741642746336,8.3748,119.48,119.43,38.76]
[1741642746537,8.3748,119.48,119.44,8.3771]
[1741642747434,8.3752,119.47,119.44,8.3771]
[1741642748135,0.06112716,119.49,119.43,8.3776]
[1741642748340,38.74,119.5,119.41,276.14]
[1741642748640,8.3762,119.46,119.42,8.3783]
[1741642748842,0.05703703,119.47,119.42,8.3783]
[1741642749041,0.05703703,119.47,119.41,314.9]
[1741642749336,8.3783,119.43,119.39,38.76]
[1741642749571,44.9099,119.46,119.39,38.76]
[1741642749740,0.05479664,119.42,119.37,452.04963865]
[1741642749935,0.05479664,119.42,119.37,323.3018]
[1741642750337,8.3805,119.4,119.36,8.3825]
[1741642750730,0.0597872,119.39,119.36,8.3825]
[1741642750932,8.4405872,119.39,119.36,8.3825]
[1741642751134,194.0,119.57,119.36,195.19560321]
[1741642751338,4.3736,119.54,119.37,5.20001051]
[1741642751534,2.023,119.56,119.51,8.3719]
[1741642751738,2.023,119.56,119.38,67.10277016]
[1741642751739,2.023,119.56,119.5,38.74]
[1741642751938,2.023,119.56,119.5,38.76]
[1741642752137,11.62841468,119.58,119.5,38.76]
[1741642752344,0.064125,119.54,119.52,0.0597872]
[1741642752774,11.62841468,119.58,119.52,0.0597872]
[1741642753842,0.06064953,119.56,119.55,8.3695]
[1741642754042,0.06064953,119.56,119.55,47.1295]
[1741642764142,4.953e-05,119.56,119.55,47.1295]
[1741642764638,4.953e-05,119.56,119.55,51.1957]
[1741642767045,4.953e-05,119.56,119.55,53.6957]
[1741642767446,4.953e-05,119.56,119.55,54.5257]
[1741642770451,4.953e-05,119.56,119.55,8.3695]
[1741642773748,2.1712,119.68,119.55,2.5]
[1741642773981,12.5938,119.68,119.56,5.0546]
[1741642774155,4.233,119.68,119.56,5.0546]
[1741642774455,4.233,119.68,119.64,8.3629]
[1741642774855,0.0586857,119.67,119.65,0.05292521]
[1741642775953,8.3618,119.66,119.65,0.05292521]
[1741642776259,0.0586857,119.67,119.59,38.68]
[1741642776448,38.68,119.67,119.59,38.68]
[1741642776651,8.3623,119.66,119.62,8.3645]
[1741642777053,38.68,119.67,119.59,38.68]
[1741642777257,0.06353093,119.65,119.64,8.3627]
[1741642780159,0.06353093,119.65,119.63,8.42537356]
[1741642783065,8.42633093,119.65,119.63,0.06197356]
[1741642783476,0.06353093,119.65,119.56,40.7384]
[1741642783665,8.3648,119.62,119.59,8.3665]
[1741642784466,8.3648,119.62,119.59,8.42949638]
[1741642784666,0.05378469,119.62,119.59,0.06299638]
[1741642784876,0.05378469,119.62,119.61,8.3653]
[1741642793775,8.469e-05,119.62,119.61,8.3653]
[1741642797477,8.469e-05,119.62,119.61,284.2253]
[1741642800171,8.469e-05,119.62,119.61,8.3653]
[1741642800394,8.469e-05,119.62,119.6,8.3657]
[1741642800572,8.469e-05,119.62,119.59,38.66299638]
[1741642800772,8.469e-05,119.62,119.57,91.4197591]
[1741642800773,8.3659,119.61,119.57,91.4197591]
[1741642800980,12.5348,119.61,119.57,91.4197591]
[1741642801278,4.1689,119.61,119.57,91.4197591]
[1741642801871,4.1689,119.61,119.58,0.05654902]
[1741642802075,8.3664,119.6,119.58,0.05654902]
[1741642802968,4.1689,119.61,119.58,0.05654902]
[1741642803176,4.1689,119.61,119.59,8.3667]
[1741642803777,12.5343,119.61,119.58,0.05654902]
[1741642804081,4.1689,119.61,119.58,0.05654902]
[1741642804474,8.3665,119.6,119.58,0.05654902]
[1741642807580,4.1689,119.61,119.58,0.05654902]
[1741642807783,8.3667,119.59,119.58,0.05654902]
[1741642808172,8.368,119.58,119.55,38.6]
[1741642808377,4.1689,119.61,119.55,46.9691]
[1741642808779,8.3678,119.58,119.55,46.9691]
[1741642809181,8.4294073,119.58,119.55,46.9691]
[1741642809879,0.0616073,119.58,119.55,38.6]
[1741642810078,0.0616073,119.58,119.56,8.3684]
[1741642812486,0.0616073,119.58,119.55,38.6]
[1741642812879,0.0616073,119.58,119.51,4.3401]
[1741642813081,0.0616073,119.58,119.54,38.58]
[1741642813275,8.4291073,119.58,119.54,38.58]
[1741642815287,8.4291073,119.58,119.56,8.3685]
[1741642817792,8.4291073,119.58,119.55,8.3691]
[1741642818486,8.3688,119.56,119.54,8.37]
[1741642818682,8.3688,119.56,119.52,38.58]
[1741642819081,8.3688,119.56,119.53,284.2105]
[1741642819988,8.3688,119.56,119.53,275.84]
[1741642820189,8.3696,119.55,119.53,275.84]
[1741642820391,8.3696,119.55,119.52,8.3712]
[1741642820584,8.43018333,119.55,119.52,8.3712]
[1741642821291,0.06058333,119.55,119.53,8.3708]
[1741642823087,8.43008333,119.55,119.52,8.3712]
[1741642823982,8.43008333,119.55,119.5,39.3463751]
[1741642824186,8.43008333,119.55,119.52,8.3713]
[1741642824887,8.43008333,119.55,119.48,278.0169]
[1741642824888,0.06058333,119.55,119.48,314.54]
[1741642825595,8.3712,119.53,119.48,314.54]
[1741642825989,8.43360778,119.52,119.49,46.9334]
[1741642826192,0.06190778,119.52,119.49,38.56]
[1741642826583,0.06190778,119.52,119.48,284.354]
[1741642826584,8.3729,119.51,119.48,284.354]
[1741642827491,0.06190778,119.52,119.48,275.98]
[1741642827701,8.3728,119.51,119.48,284.3541]
[1741642828197,8.3728,119.51,119.48,275.98]
[1741642828990,0.06190778,119.52,119.48,275.98]
[1741642829295,8.3731,119.5,119.48,275.98]
[1741642829697,8.3726,119.51,119.48,8.3741]
[1741642830896,0.06190778,119.52,119.48,8.3741]
[1741642831595,8.3729,119.51,119.48,8.3741]
[1741642832101,0.06190778,119.52,119.48,8.3741]
[1741642832297,8.3729,119.51,119.48,8.3741]
[1741642832701,0.06190778,119.52,119.48,8.3741]
[1741642833001,8.3731,119.5,119.48,8.3741]
[1741642833508,0.06190778,119.52,119.46,38.56]
[1741642833701,8.3713,119.53,119.46,38.56]
[1741642833901,0.05840663,119.5,119.46,38.56]
[1741642834898,0.05840663,119.5,119.49,8.3737]
[1741642835098,6.63e-06,119.5,119.49,8.3737]
[1741642835502,6.63e-06,119.5,119.49,10.8937]
[1741642836798,6.63e-06,119.5,119.49,12.40219635]
[1741642839805,6.63e-06,119.5,119.49,12.40063043]
[1741642841814,2.0806,119.6,119.49,4.02693043]
[1741642842016,10.5283,119.63,119.5,316.04693043]
[1741642842204,12.6321,119.63,119.51,3.67683043]
[1741642842403,12.6321,119.63,119.52,1.50693043]
[1741642842904,0.05809425,119.59,119.56,0.06104075]
[1741642843111,0.05809425,119.59,119.57,38.52]
[1741642843502,0.05809425,119.59,119.58,8.3674]
[1741642849508,0.05809425,119.59,119.57,38.52]
[1741642849714,0.05809425,119.59,119.57,46.8877]
[1741642851414,8.42489425,119.59,119.57,46.8877]
[1741642854921,0.05809425,119.59,119.58,8.3674]
[1741642872637,0.05809425,119.59,119.56,0.06104075]
[1741642873030,8.3681,119.57,119.53,367.41716931]
[1741642873339,38.42,119.61,119.53,367.41716931]
[1741642873534,8.3692,119.56,119.53,367.41716931]
[1741642873936,38.42,119.61,119.53,367.41716931]
[1741642874136,0.06320869,119.56,119.53,91.45716931]
[1741642875037,0.06320869,119.56,119.5,91.45716931]
[1741642875236,8.3702,119.54,119.51,8.3719]
[1741642875436,4.1304,119.55,119.5,129.87716931]
[1741642876036,0.05406081,119.54,119.53,8.3709]
[1741642877930,0.05406081,119.54,119.5,38.42]
[1741642878136,0.05406081,119.54,119.52,8.3713]
[1741642878631,0.05406081,119.54,119.5,38.42]
[1741642878836,6.081e-05,119.54,119.5,38.42]
[1741642879237,6.081e-05,119.54,119.53,8.3709]
[1741642881041,6.081e-05,119.54,119.53,10.8709]
[1741642881234,6.081e-05,119.54,119.53,16.59386238]
[1741642881435,6.081e-05,119.54,119.53,15.0805]
[1741642881634,6.081e-05,119.54,119.53,16.59432781]
[1741642882440,321.91256148,119.72,119.53,199.22342781]
[1741642882638,2.0132,119.69,119.54,39.91382781]
[1741642882941,2.0132,119.69,119.55,294.25272781]
[1741642883141,2.0132,119.69,119.56,1.51382781]
[1741642883340,2.0132,119.69,119.56,2.63352781]
[1741642883678,2.156e-05,119.64,119.61,0.05524425]
[1741642883844,2.156e-05,119.64,119.57,1.51382781]
[1741642883845,2.156e-05,119.64,119.62,314.36]
[1741642884039,2.156e-05,119.64,119.63,8.3639]
[1741642891141,2.156e-05,119.64,119.62,8.42181276]
[1741642891345,8.36322156,119.64,119.62,0.05761276]
[1741642891743,2.156e-05,119.64,119.62,0.05761276]
[1741642891944,8.3639,119.63,119.62,0.05761276]
[1741642892345,2.156e-05,119.64,119.59,8.3664]
[1741642892545,2.156e-05,119.64,119.58,38.34]
[1741642892546,8.3653,119.62,119.58,38.34]
[1741642892752,2.0728,119.63,119.58,46.7071]
[1741642893051,8.3653,119.61,119.58,46.7071]
[1741642893349,2.0728,119.63,119.57,284.2079]
[1741642893547,8.3663,119.6,119.58,0.05393149]
[1741642893746,0.05322524,119.61,119.58,0.05393149]
[1741642894139,8.3667,119.59,119.58,0.05393149]
[1741642896146,8.3662,119.6,119.58,0.05393149]
[1741642898352,0.05322524,119.61,119.58,0.05393149]
[1741642899351,8.41882524,119.61,119.58,8.42123149]
[1741642901455,8.41882524,119.61,119.59,8.3666]
[1741642901907,8.41882524,119.61,119.58,8.42093149]
[1741642902049,0.05322524,119.61,119.58,0.05393149]
[1741642903156,0.05322524,119.61,119.6,8.366]
[1741642906955,0.05322524,119.61,119.6,46.666]
[1741642909357,2.524e-05,119.61,119.6,46.666]
[1741642922871,2.524e-05,119.61,119.6,46.606]
[1741642928771,2.524e-05,119.61,119.6,49.106]
[1741642929371,2.524e-05,119.61,119.6,46.606]
[1741642929568,6.379,119.69,119.6,42.25482328]
[1741642929771,2.0869,119.69,119.68,8.3604]
[1741642931276,0.05437168,119.7,119.69,8.3597]
[1741642933479,7.168e-05,119.7,119.69,8.3597]
[1741642938778,7.168e-05,119.7,119.69,10.8597]
[1741642939477,7.168e-05,119.7,119.69,8.3597]
[1741642939975,7.168e-05,119.7,119.69,10.8597]
[1741642940179,7.168e-05,119.7,119.69,12.36976233]
[1741642940676,4.1543,119.78,119.77,8.3541]
[1741642941583,2.0597,119.78,119.77,8.3541]
[1741642942283,2.23369954,119.79,119.78,8.3534]
[1741642942776,0.06319954,119.79,119.78,8.3534]
[1741642943084,9.954e-05,119.79,119.78,8.3534]
[1741642943978,9.954e-05,119.79,119.78,10.8534]
[1741642944377,9.954e-05,119.79,119.78,8.3534]
[1741642949076,9.954e-05,119.79,119.76,0.06020194]
[1741642949277,9.954e-05,119.79,119.77,38.12]
[1741642949507,2.19739954,119.79,119.77,38.12]
[1741642949673,10.55079954,119.79,119.76,0.06020194]
[1741642949873,10.55079954,119.79,119.77,38.1]
[1741642950075,10.55079954,119.79,119.77,28.1136]
[1741642950584,8.3534,119.78,119.77,11.4693]
[1741642950782,8.3534,119.78,119.77,6.4412]
[1741642951978,2.19739954,119.79,119.76,0.06020194]
[1741642952481,8.3537,119.78,119.76,0.06020194]
[1741642955284,9.954e-05,119.79,119.76,8.41470194]
[1741642955489,9.954e-05,119.79,119.76,0.06020194]
[1741642956386,8.35309954,119.79,119.76,8.41460194]
[1741642956884,8.35309954,119.79,119.77,8.3541]
[1741642957184,8.35309954,119.79,119.76,0.06020194]
[1741642957385,9.954e-05,119.79,119.76,0.06020194]
[1741642957585,8.354,119.78,119.76,0.06020194]
[1741642957883,9.954e-05,119.79,119.76,0.06020194]
[1741642959087,8.354,119.78,119.76,0.06020194]
[1741642959391,9.954e-05,119.79,119.76,8.41470194]
[1741642959578,8.35309954,119.79,119.76,0.06020194]
[1741642959782,8.35309954,119.79,119.76,8.41470194]
[1741642960589,8.3541,119.78,119.76,0.06020194]
[1741642960789,9.954e-05,119.79,119.76,0.06020194]
[1741642962235,8.3541,119.78,119.76,0.06020194]
[1741642963287,9.954e-05,119.79,119.76,0.06020194]
[1741642964397,8.3541,119.77,119.76,0.06020194]
[1741642967200,8.3538,119.78,119.76,8.41500194]
[1741642968901,8.3538,119.78,119.76,0.06020194]
[1741642969304,9.954e-05,119.79,119.76,0.06020194]
[1741642969305,8.3541,119.77,119.76,0.06020194]
[1741642973002,8.3538,119.78,119.76,0.06020194]
[1741642974408,8.3538,119.78,119.76,8.41500194]
[1741642974701,8.3538,119.78,119.76,0.06020194]
[1741642975907,9.954e-05,119.79,119.78,8.3534]
[1741642983209,9.954e-05,119.79,119.78,10.8534]
[1741642984113,9.954e-05,119.79,119.78,12.35830624]
[1741642984307,9.954e-05,119.79,119.78,10.8534]
[1741642984513,9.954e-05,119.79,119.78,12.35802021]
[1741642985910,9.954e-05,119.79,119.78,12.35757234]
[1741642986108,0.8375,119.95,119.78,4.00417234]
[1741642986309,0.8375,119.95,119.79,41.67997234]
[1741642986511,0.8375,119.95,119.8,1.50417234]
[1741642986816,0.8375,119.95,119.9,8.3444]
[1741642987016,9.1797,119.95,119.9,8.3444]
[1741642987317,0.06294246,119.94,119.91,0.06277173]
[1741642987518,0.06294246,119.94,119.92,8.3435]
[1741642987918,0.06294246,119.94,119.91,0.06277173]
[1741642988119,0.06294246,119.94,119.91,8.40677173]
[1741642988320,0.06294246,119.94,119.91,0.06277173]
[1741642988717,0.06294246,119.94,119.92,8.3432]
[1741642990221,0.06294246,119.94,119.93,8.343]
[1741642996327,8.3391,119.99,119.92,275.28]
[1741642996527,8.3391,119.99,119.93,2.1259]
[1741642996727,8.3391,119.99,119.94,37.9]
[1741642996924,8.3391,119.99,119.93,2.1259]
[1741642997129,194.8335,120.07,119.91,2.0545]
[1741642997130,37.9,119.98,119.91,2.0545]
[1741642997426,0.05574953,119.97,119.95,0.05355103]
[1741642997826,8.3409,119.96,119.95,0.05355103]
[1741642998933,2.5,119.96,119.88,2.1918]
[1741642999119,37.9,119.97,119.87,275.22]
[1741642999325,37.9,119.97,119.88,8.346]
[1741642999928,8.3441,119.92,119.88,8.346]
[1741643000130,8.3441,119.92,119.91,0.05613022]
[1741643001026,8.3461,119.89,119.87,275.22]
[1741643001428,37.9,119.93,119.87,275.22]
[1741643002132,37.9,119.93,119.86,37.9]
[1741643002322,0.06120399,119.91,119.89,0.05662591]
[1741643002519,8.3451,119.9,119.89,0.05662591]
[1741643003129,10.8451,119.9,119.89,0.05662591]
[1741643003325,8.3451,119.9,119.89,0.05662591]
[1741643003529,2.5,119.9,119.84,37.88]
[1741643003832,37.9,119.93,119.82,275.2]
[1741643003833,194.0,119.92,119.82,275.2]
[1741643004529,8.3489,119.85,119.82,275.2]
[1741643004932,8.3489,119.85,119.82,275.26178546]
[1741643005135,0.0554444,119.85,119.82,275.26178546]
[1741643006428,0.0554444,119.85,119.82,0.06178546]
[1741643006974,8.3499,119.83,119.82,0.06178546]
[1741643010830,8.3517,119.81,119.78,2.067]
[1741643011030,37.88,119.85,119.78,2.067]
[1741643011249,37.88,119.85,119.77,275.28]
[1741643011432,0.777,119.84,119.77,275.28]
[1741643011635,0.777,119.84,119.75,2.1046]
[1741643011826,8.3538,119.78,119.75,10.4598]
[1741643012234,37.88,119.81,119.75,2.15886605]
[1741643012440,0.05813428,119.78,119.75,0.05426605]
[1741643012635,37.86,119.77,119.7,228.58680796]
[1741643013539,194.0,119.76,119.7,228.58680796]
[1741643013738,194.0,119.75,119.7,227.86250796]
[1741643014043,194.06006452,119.75,119.7,215.05900796]
[1741643014339,196.56006452,119.75,119.64,8.363]
[1741643014542,194.0,119.74,119.64,8.363]
[1741643014741,37.88,119.73,119.61,2.0233]
[1741643014937,0.05585943,119.7,119.61,2.0233]
[1741643015142,8.3603,119.69,119.61,2.0233]
[1741643015343,8.3603,119.69,119.64,8.3628]
[1741643015643,0.05520899,119.67,119.61,2.0233]
[1741643016139,0.05520899,119.67,119.63,48.3187]
[1741643016545,0.05520899,119.67,119.63,10.4387]
[1741643017245,8.41640899,119.67,119.63,8.3634]
[1741643017539,0.05520899,119.67,119.62,283.7245]
[1741643018542,8.3618,119.66,119.62,283.7245]
[1741643018742,0.05520899,119.67,119.63,8.3638]
[1741643019141,8.3619,119.66,119.61,37.88]
[1741643019440,0.05520899,119.67,119.6,37.9]
[1741643019643,37.88,119.69,119.59,4.1592]
[1741643019843,0.06278378,119.65,119.61,8.3648]
[1741643020440,8.3636,119.64,119.61,8.3648]
[1741643020844,8.3636,119.64,119.6,8.3656]
[1741643021142,8.364,119.63,119.6,8.3656]
[1741643021342,0.06278378,119.65,119.6,8.3656]
[1741643021948,8.3638,119.64,119.6,8.3656]
[1741643023147,8.3641,119.63,119.6,8.3656]
[1741643023650,0.06278378,119.65,119.59,2.0109]
[1741643023845,8.3646,119.62,119.59,10.3773]
[1741643025249,0.05424229,119.63,119.59,2.0109]
[1741643025445,8.41874229,119.63,119.6,8.3659]
[1741643025650,0.05424229,119.63,119.6,8.3659]
[1741643026550,8.3647,119.62,119.59,10.3773]
[1741643026752,8.3647,119.62,119.59,2.0109]
[1741643027165,8.3647,119.62,119.59,10.3771]
[1741643027651,0.05424229,119.63,119.59,2.0109]
[1741643027855,8.41854229,119.63,119.6,8.366]
[1741643030658,8.3648,119.62,119.59,2.0109]
[1741643030862,0.05424229,119.63,119.59,2.0109]
[1741643031164,8.3649,119.62,119.59,2.0109]
[1741643032364,8.3649,119.62,119.6,8.3659]
[1741643032959,8.3649,119.62,119.59,8.3664]
[1741643036767,0.05424229,119.63,119.59,8.3664]